{"text_format":"1","workbook":"xlsx","n_sheets":5,"sheets":["Бланк","Сервисный лист","Тех.мероприятия","Выдающий","Предложения по доработке"],"not_rendered":{"charts":0,"images":10,"macros":1,"external_links":0,"defined_names":3,"comments":0,"pivot_tables":0},"unopened":[],"bounds":{"document_bytes":16777216,"sheet_cells":100000,"rows_first":2000,"rows_last":500,"rows_between":2000,"halvings":0,"cell_chars":16384,"cell_head_chars":4096},"cells_cut":0,"cells_raw":0,"read":"whole","date_system":"1900"}

{"sheet":"Бланк","index":0,"n_rows":38,"n_cols":82,"rows_kept":38,"cut":false,"hidden":false,"merged":[[10,1,10,72],[14,1,14,72],[17,1,17,41],[15,1,15,72],[9,1,9,16],[11,1,11,72],[12,33,12,72],[9,18,9,72],[37,27,38,29],[35,1,36,3],[37,1,38,3],[20,17,20,72],[23,1,23,26],[23,27,23,72],[20,1,20,16],[25,1,25,6],[33,1,34,3],[32,58,34,71],[33,27,34,29],[35,27,36,29],[7,81,7,85],[2,1,2,10],[4,57,4,61],[6,1,6,12],[6,13,6,72],[2,56,2,69],[2,42,2,53],[2,12,2,24],[7,75,7,79],[4,12,4,30],[4,32,4,37],[4,43,4,45],[4,50,4,53]]}
[null,null,null,null,null,null,null,null,null,null,null,null,null,null,null,null,null,null,null,null,null,null,null,null,null,null,null,null,null,null,null,null,null,null,null,null,null,null,null,null,null,null,null,null,null,"Для работы в электроустановках"]
[]
[null,"Предприятие ",null,null,null,null,null,null,null,null,null,null,"БАЭС",null,null,null,null,null,null,null,null,null,null,null,null,null,null,null,null,null,null,null,null,null,null,null,null,null,null,null,null,null,"Подразделение",null,null,null,null,null,null,null,null,null,null,null,null,null,"ЭЦ"]
[]
[null,null,null,null,null,null,null,null,null,null,null,null,"РАСПРОРЯЖЕНИЕ  №",null,null,null,null,null,null,null,null,null,null,null,null,null,null,null,null,null,null,null,null,null,null,null,null,null,null,"от «",null,null,null,{"$f":"'Сервисный лист'!D4","v":19},null,null,"»",null,null,null,{"$f":"'Сервисный лист'!D5","v":12},null,null,null,null,null,null,{"$f":"'Сервисный лист'!D11","v":2016}]
[]
[null,"Производителю ",null,null,null,null,null,null,null,null,null,null,null,{"$f":"#REF!","v":{"$error":"#REF!"}}]
[null,"(Ф.И.О., гр. по эл.безопасности, подпись производителя работ о получении целевого инструктажа от лица, выдавшего распоряжение) ",null,null,null,null,null,null,null,null,null,null,null,null,null,null,null,null,null,null,null,null,null,null,null,null,null,null,null,null,null,null,null,null,null,null,null,null,null,null,null,null,null,null,null,null,null,null,null,null,null,null,null,null,null,null,null,null,null,null,null,null,null,null,null,null,null,null,null,null,null,null,null,null,null,"Производителю",null,null,null,null,null,"Выдающий распоряжение"]
[]
[null,"с бригадой в составе:",null,null,null,null,null,null,null,null,null,null,null,null,null,null,null,null,{"$f":"IFERROR(MID(#REF!,1,70-MATCH(\";*\",RIGHT(MID(#REF!,1,70),ROW(B1:B71)),0)+1),\"\")","v":""}]
[null,{"$f":"IF(ISERROR(MID(SUBSTITUTE(#REF!,S10,\"\"),1,90-MATCH(\";*\",RIGHT(MID(SUBSTITUTE(#REF!,S10,\"\"),1,90),ROW(B1:B91)),0)+1)),\"\",MID(SUBSTITUTE(#REF!,S10,\"\"),1,90-MATCH(\";*\",RIGHT(MID(SUBSTITUTE(#REF!,S10,\"\"),1,90),ROW(B1:B91)),0)+1))","v":""}]
[null,{"$f":"SUBSTITUTE(#REF!,Бланк!S10&Бланк!B11,\"\")","v":{"$error":"#REF!"}}]
[null,"Поручается произвести следующие работы",null,null,null,null,null,null,null,null,null,null,null,null,null,null,null,null,null,null,null,null,null,null,null,null,null,null,null,null,null,null,null,{"$f":"MID('Сервисный лист'!D15,1,50-MATCH(\" *\",RIGHT(MID('Сервисный лист'!D15,1,50),ROW(AA$1:AA$51)),0)+1)","v":"UJD04 915. Произвести текущий ремонт "}]
[null,null,null,null,null,null,null,null,null,null,null,null,null,null,null,null,null,null,null,null,null,null,null,null,null,null,null,null,null,null,null,null,null,null,null,null,null,null,null,null,null,null,"(место и наименование работы) "]
[null,{"$f":"IF(ISERROR(MID(SUBSTITUTE('Сервисный лист'!D15,AH13,\"\"),1,90-MATCH(\" *\",RIGHT(MID(SUBSTITUTE('Сервисный лист'!D15,AH13,\"\"),1,90),ROW(AA$1:AA$91)),0)+1)),\"\",MID(SUBSTITUTE('Сервисный лист'!D15,AH13,\"\"),1,90-MATCH(\" *\",RIGHT(MID(SUBSTITUTE('Сервисный лист'!D15,AH13,\"\"),1,90),ROW(AA$1:AA$91)),0)+1))","v":"электродвигателя 4SAA63AH001KN01. "}]
[null,{"$f":"SUBSTITUTE('Сервисный лист'!D15,AH13&B15,\"\")","v":""},null,null,null,null,null,null,null,null,null,null,null,null,null,null,null,null,null,null,null,null,null,null,null,null,null,null,null,null,null,null,null,null,null,null,null,null,null,null,null,null,null,null,null,null,null,null,null,null,null,null,null,null,null,null,null,null,null,null,null,null,null,null,null,null,null,null,null,null,null,null,null,null,null,null,null,null,null,null,null,"Здесь надо писать неучтенные в перечне работы "]
[null,"Технические мероприятия по обеспечению безопасности работ"]
[null,"с указанием необходимых отключений",null,null,null,null,null,null,null,null,null,null,null,null,null,null,null,null,null,null,null,null,null,null,null,null,null,null,null,null,null,null,null,null,null,null,null,null,null,null,null,null,":",{"$f":"TRIM(LEFTB('Сервисный лист'!B21,LOOKUP(33,SEARCH(\" \",'Сервисный лист'!B21&\" \",ROW($1:$33)))-1))","v":"Шкаф САУ 4SAA63GH101 отключить"}]
[null,{"$f":"LEFTB(TRIM(SUBSTITUTE(TRIM('Сервисный лист'!B21),AR18,\"\")),LOOKUP(83,SEARCH(\" \",TRIM(SUBSTITUTE(TRIM('Сервисный лист'!B21),AR18,\"\"))&\" \",ROW($1:$83)))-1)","v":"АВ питания электродвигателя 4SAA63AH001KN01. Закрыть гермоклапан. Вывесить плакаты"}]
[null,{"$f":"TRIM(SUBSTITUTE(TRIM(SUBSTITUTE(TRIM('Сервисный лист'!B21),AR18,\"\")),B19,\"\"))","v":"безопасности"}]
[null,"Распоряжение выдал",null,null,null,null,null,null,null,null,null,null,null,null,null,null,null,"Краснов Э.Е., гр.5"]
[null,null,null,null,null,null,null,null,null,null,null,null,null,null,null,null,null,null,null,"(Ф.И.О., гр. по электробезопасности, подпись о проведении целевого инструктажа производителю работ)"]
[]
[null,"Оперативный персонал других цехов"]
[null,null,null,null,null,null,null,null,null,null,null,null,null,null,null,null,null,null,null,null,null,null,null,null,null,null,null,null,null,null,null,null,null,null,null,null,null,null,null,null,null,"(название цеха, должность, фамилия, подпись)"]
[null,{"$f":"BG36","v":0}]
[]
[]
[]
[]
[]
[]
[null,null,null,null,null,null,null,null,null,null,null,null,null,null,null,null,null,null,null,null,"Члены бригады"]
[null,1,null,null,null,null,null,null,null,null,null,null,null,null,null,null,null,null,null,null,null,null,null,null,null,null,null,2]
[]
[null,3,null,null,null,null,null,null,null,null,null,null,null,null,null,null,null,null,null,null,null,null,null,null,null,null,null,4]
[]
[null,5,null,null,null,null,null,null,null,null,null,null,null,null,null,null,null,null,null,null,null,null,null,null,null,null,null,6]

{"sheet":"Сервисный лист","index":1,"n_rows":40,"n_cols":9,"rows_kept":40,"cut":false,"hidden":false,"merged":[]}
[]
[null,"Вид ремонта для использования в таблице",null,"выбранная дата работы по распоряжению"]
[null,"текущий ремонт",null,"19.12.2016",null,"ТР"]
[null,"капитальный ремонт",null,{"$f":"DAY(D3)","v":19},null,"КР"]
[null,"техническое обслуживание",null,{"$f":"MONTH(D3)","v":12},null,"ТО"]
[null,"поиск и устранение дефекта",null,null,null,"ПиУД"]
[null,"демонтаж ЭД",null,null,null,"Демонтаж ЭД"]
[null,"монтаж ЭД",null,null,null,"Монтаж ЭД"]
[null,"подключение питающего кабеля к ",null,null,null,"Подкл. КЛ"]
[]
[null,null,null,{"$f":"YEAR(D3)","v":2016}]
[null,null,null,{"$f":"NOW()","v":"2016-12-18T16:41:27.910"}]
[]
[null,"Выбранный на листе \"Бланк\" вид ремонта",null,"Поручается произвести следующие работы"]
[null,"текущий ремонт",null,{"$f":"INDEX(Тех.мероприятия!D3:D1771,D18,1)&\". \"&IF(Бланк!CD17=\"\",\"Произвести\"&\" \"&B15&\" \"&IF(F15=\"Подкл. КЛ\",INDEX(I36:I40,MATCH(INDEX(Тех.мероприятия!C3:C1771,D18,1),H36:H40,0),1),INDEX(Тех.мероприятия!C3:C1771,D18,1)),Бланк!CD17)&\" \"&INDEX(Тех.мероприятия!B3:B1771,D18,1)&\". \"","v":"UJD04 915. Произвести текущий ремонт электродвигателя 4SAA63AH001KN01. "},null,{"$f":"INDEX(F3:F10,MATCH(B15,B3:B11,0))","v":"ТР"}]
[]
[null,"Выбор ККСа агрегата для ремонта",null,"позиция ККСа в таблице (используется для заполнения технических мероприятий)",null,"напряжение (ищет по позиции D15)","напряжение (ищет по KKSу B15)"]
[null,"4SAA63AH001KN01",null,{"$f":"MATCH(B18,Тех.мероприятия!B3:B1771,0)","v":7},null,{"$f":"INDEX(Тех.мероприятия!F3:F1771,'Сервисный лист'!D18,)","v":0.4},{"$f":"INDEX(Тех.мероприятия!F3:F1771,MATCH(B18,Тех.мероприятия!B3:B1771,0),)","v":0.4}]
[]
[null,"Технические мероприятия по обеспечению безопасности работ"]
[null,{"$f":"INDEX(Тех.мероприятия!G3:G1771,D18,1)&\" \"&INDEX(Тех.мероприятия!H3:H1771,D18,1)&\" \"&INDEX(Тех.мероприятия!I3:I1771,D18,1)","v":"Шкаф САУ 4SAA63GH101 отключить АВ питания электродвигателя 4SAA63AH001KN01. Закрыть гермоклапан. Вывесить плакаты безопасности"}]
[]
[null,"Имя файла для сохранения в формате PDF"]
[null,{"$f":"B18&\"_\"&F$15&\"_\"&D$3","v":"4SAA63AH001KN01_ТР_19.12.2016"}]
[]
[null,"Путь №1 для сохранение в формате PDF"]
[null,{"$f":"INDEX(Тех.мероприятия!#REF!,MATCH(B18,Тех.мероприятия!B3:B1771,0),)&\"\\\"","v":{"$error":"#REF!"}}]
[]
[null,"Путь №2 для сохранение в формате PDF"]
[null,"T:\\work\\EC\\Общая\\Участок МГО\\Печать распоряжений\\РАСПОРЯЖЕНИЯ В PDF\\"]
[]
[]
[]
[]
[]
[null,null,null,null,null,null,null,"коробки соединительной канальных воздухонагревателей","коробке соединительной канальных воздухонагревателей"]
[null,null,null,null,null,null,null,"пароувлажнителя","пароувлажнителю"]
[null,null,null,null,null,null,null,"шкафа САУ","шкафу САУ"]
[null,null,null,null,null,null,null,"электрокалорифера","электрокалориферу"]
[null,null,null,null,null,null,null,"электродвигателя","электродвигателю"]

{"sheet":"Тех.мероприятия","index":2,"n_rows":35,"n_cols":14,"rows_kept":35,"cut":false,"hidden":false,"merged":[[0,0,0,7]]}
["Внимание! Место сохрания T:\\work\\EC\\Общая\\Участок МГО\\Печать распоряжений\\РАСПОРЯЖЕНИЯ В PDF\\\"ЦЕХ\" ЦЕХ прописывать в столбце J.                     ",null,null,null,null,null,null,null,{"$f":"\"всего агрегатов в таблице \"&COUNTA(#REF!)","v":"всего агрегатов в таблице 1"}]
["№пп","KKS","Ремонтируемый механизм","место","ЗКД ","U","питание","отключения","дополнительные мероприятия"]
[null,"4SAA60GH102","шкафа САУ","1UBR36 111",null,0.4,"Сб. 4BFS00GE351 бл.7В","отключить АВ питания шкафа САУ 4SAA60GH102  и выкатить в ремонтное положение","Вывесить плакаты безопасности",null,{"$f":"G3&\" \"&H3&\" \"&I3","v":"Сб. 4BFS00GE351 бл.7В отключить АВ питания шкафа САУ 4SAA60GH102  и выкатить в ремонтное положение Вывесить плакаты безопасности"},{"$f":"TRIM(LEFTB(K3,LOOKUP(33,SEARCH(\" \",K3&\" \",ROW($1:$33)))-1))","v":"Сб. 4BFS00GE351 бл.7В отключить"},{"$f":"LEFTB(TRIM(SUBSTITUTE(TRIM(K3),L3,\"\")),LOOKUP(83,SEARCH(\" \",TRIM(SUBSTITUTE(TRIM(K3),L3,\"\"))&\" \",ROW($1:$83)))-1)","v":"АВ питания шкафа САУ 4SAA60GH102 и выкатить в ремонтное положение Вывесить плакаты"},{"$f":"TRIM(SUBSTITUTE(TRIM(SUBSTITUTE(TRIM(K3),L3,\"\")),M3,\"\"))","v":"безопасности"}]
[null,"4SAA61GH101","шкафа САУ","1UBR36 153",null,0.4,"Сб.  4BFS00GE341 бл. 7С","отключить АВ питания шкафа САУ 4SAA61GH101 и выкатить в ремонтное положение","Вывесить плакаты безопасности",null,"Сб.  4BFS00GE341 бл. 7С отключить АВ питания шкафа САУ 4SAA61GH101 и выкатить в ремонтное положение Вывесить плакаты безопасности","Сб. 4BFS00GE341 бл. 7С","отключить АВ питания шкафа САУ 4SAA61GH101 и выкатить в ремонтное положение","Вывесить плакаты безопасности"]
[null,"4SAA61GH102","шкафа САУ","1UBR36 153",null,0.4,"Сб. 4BFS00GE351 бл.7С","отключить АВ питания шкафа САУ 4SAA61GH102 и выкатить в ремонтное положение","Вывесить плакаты безопасности",null,"Сб. 4BFS00GE351 бл.7С отключить АВ питания шкафа САУ 4SAA61GH102 и выкатить в ремонтное положение Вывесить плакаты безопасности","Сб. 4BFS00GE351 бл.7С отключить","АВ питания шкафа САУ 4SAA61GH102 и выкатить в ремонтное положение Вывесить плакаты","безопасности"]
[null,"4SAA62AH002KN01","электродвигателя","UJD36 113",null,0.4,"Шкаф САУ 4SAA62GH102","отключить АВ питания электродвигателя 4SAA62AH002KN01. Закрыть гермоклапан.","Вывесить плакаты безопасности",null,"Шкаф САУ 4SAA62GH102 отключить АВ питания электродвигателя 4SAA62AH002KN01. Закрыть гермоклапан. Вывесить плакаты безопасности","Шкаф САУ 4SAA62GH102 отключить","АВ питания электродвигателя 4SAA62AH002KN01. Закрыть гермоклапан. Вывесить плакаты","безопасности"]
[null,"4SAA62GH101","шкафа САУ","UJD36 113",null,0.4,"Сб. 4BFS00GE381 бл.7В","отключить АВ питания шкафа САУ 4SAA62GH1011 и выкатить в ремонтное положение","Вывесить плакаты безопасности",null,"Сб. 4BFS00GE381 бл.7В отключить АВ питания шкафа САУ 4SAA62GH1011 и выкатить в ремонтное положение Вывесить плакаты безопасности","Сб. 4BFS00GE381 бл.7В отключить","АВ питания шкафа САУ 4SAA62GH1011 и выкатить в ремонтное положение Вывесить","плакаты безопасности"]
[null,"4SAA62GH102","шкафа САУ","UJD36 113",null,0.4,"Сб. 4BFS00GE391 бл.7А","отключить АВ питания шкафа САУ 4SAA62GH102 и выкатить в ремонтное положение","Вывесить плакаты безопасности",null,"Сб. 4BFS00GE391 бл.7А отключить АВ питания шкафа САУ 4SAA62GH102 и выкатить в ремонтное положение Вывесить плакаты безопасности","Сб. 4BFS00GE391 бл.7А отключить","АВ питания шкафа САУ 4SAA62GH102 и выкатить в ремонтное положение Вывесить плакаты","безопасности"]
[null,"4SAA63AH001KN01","электродвигателя","UJD04 915",null,0.4,"Шкаф САУ 4SAA63GH101","отключить АВ питания электродвигателя 4SAA63AH001KN01. Закрыть гермоклапан.","Вывесить плакаты безопасности"]
[null,"4SAA63AH002","электродвигателя","UJD04 915",null,0.4,"Шкаф САУ 4SAA63GH102","отключить АВ питания электродвигателя 4SAA63AH002. Закрыть гермоклапан.","Вывесить плакаты безопасности"]
[null,"4SAA63GH101","шкафа САУ","UJD04 915",null,0.4,"Сб. 4BFS00GE141 бл.7С","отключить АВ питания шкафа САУ 4SAA63GH101 и выкатить в ремонтное положение","Вывесить плакаты безопасности"]
[null,"4SAA63GH102","шкафа САУ","UJD04 915",null,0.4,"Сб. 4BFS00GE151 бл.8А","отключить АВ питания шкафа САУ 4SAA63GH102 и выкатить в ремонтное положение","Вывесить плакаты безопасности"]
[null,"4SAA64AH001","электродвигателя","2UBR12 173",null,0.4,"Шкаф САУ 4SAA64GH101","отключить АВ питания электродвигателя 4SAA64AH001. Закрыть гермоклапан.","Вывесить плакаты безопасности"]
[null,"4SAA64AH002KN01","электродвигателя","2UBR12 173",null,0.4,"Шкаф САУ 4SAA64GH102 ","отключить АВ питания электродвигателя 4SAA64AH002KN01. Закрыть гермоклапан.","Вывесить плакаты безопасности"]
[null,"4SAA64GH101","шкафа САУ","2UBR12 173",null,0.4,"Сб. 4BFS00GE251 бл.7А","отключить АВ питания шкафа САУ 4SAA64GH101 и выкатить в ремонтное положение","Вывесить плакаты безопасности"]
[null,"4SAA64GH102","электродвигателя","2UBR12 173",null,0.4,"Сб. 4BFS00GE261 бл.9В","отключить АВ питания шкафа САУ 4SAA64GH102  и выкатить в ремонтное положение","Вывесить плакаты безопасности"]
[null,"4SAA65AH001","электродвигателя","2UBR40 311",null,0.4,"Шкаф САУ 4SAA65GH101","отключить АВ питания электродвигателя 4SAA65AH001. Закрыть гермоклапан.","Вывесить плакаты безопасности"]
[null,"4SAA65AH002","электродвигателя","2UBR40 311",null,0.4,"Шкаф САУ 4SAA65GH102 ","отключить АВ питания электродвигателя 4SAA65AH002. Закрыть гермоклапан.","Вывесить плакаты безопасности"]
[null,"4SAA65GH101","шкафа САУ","2UBR40 311",null,0.4,"Сб. 4BFS00GE362 бл.4А","отключить АВ питания шкафа САУ 4SAA65GH101 и выкатить в ремонтное положение","Вывесить плакаты безопасности"]
[null,"4SAA65GH102","шкафа САУ","2UBR40 311",null,0.4,"Сб. 4BFS00GE372 бл.4А","отключить АВ питания шкафа САУ 4SAA65GH102  и выкатить в ремонтное положение","Вывесить плакаты безопасности"]
[null,"4SAA66AN001","электродвигателя","1UBR36 111",null,0.4,"Сб. 4BFS00GE352 бл. 4А","отключить АВ питания электродвигателя 4SAA66AN001 и выкатить в ремонтное положение. Закрыть гермоклапан.","Вывесить плакаты безопасности"]
[null,"4SAA67AN001","электродвигателя","1UBR36 153",null,0.4,"Сб. 4BFS00GE342 бл. 1А","отключить АВ питания электродвигателя 4SAA67AN001 и выкатить в ремонтное положение. Закрыть гермоклапан.","Вывесить плакаты безопасности"]
[null,"4SAA68AN001","электродвигателя","UJD45 114",null,0.4,"Сб. 4BFC09 бл.2В","отключить АВ питания электродвигателя 4SAA68AN001 и выкатить в ремонтное положение. Закрыть гермоклапан.","Вывесить плакаты безопасности"]
[null,"4SAA70AN001","электродвигателя","2UBR40 311",null,0.4,"Сб. 4BFS00GE362 бл. 1А","отключить АВ питания электродвигателя 4SAA70AN001 и выкатить в ремонтное положение. Закрыть гермоклапан.","Вывесить плакаты безопасности"]
[null,"4SAA71AN001","электродвигателя","2UBR27 263",null,0.4,"Сб. 4BFS00GE372 бл. 2А","отключить АВ питания электродвигателя 4SAA71AN001 и выкатить в ремонтное положение. Закрыть гермоклапан.","Вывесить плакаты безопасности"]
[null,"4SAA73AN001","электродвигателя","UJD40 915",null,0.4,"Сб. 4BFS00GE151 бл. 9В","отключить АВ питания электродвигателя 4SAA73AN001 и выкатить в ремонтное положение. Закрыть гермоклапан.","Вывесить плакаты безопасности"]
[null,"4SAA78AN001","электродвигателя","1UBR36 111",null,0.4,"Сб. 4BFS00GE342 бл. 4В","отключить АВ питания электродвигателя 4SAA78AN001 и выкатить в ремонтное положение. ","Вывесить плакаты безопасности"]
[null,"4SAA79AN001","электродвигателя","1UBR36 161",null,0.4,"Сб. 4BFS00GE352бл. 3В","отключить АВ питания электродвигателя 4SAA79AN001 и выкатить в ремонтное положение. ","Вывесить плакаты безопасности"]
[null,"4SAA80AN001","электродвигателя","UJD45 112",null,0.4,"Сб. 4BFS00GE391 бл. 8С","отключить АВ питания электродвигателя 4SAA80AN001 и выкатить в ремонтное положение. ","Вывесить плакаты безопасности"]
[null,"4SAA81AN001","электродвигателя","UJD36 916",null,0.4,"Сб. 4BFS00GE151 бл. 10А","отключить АВ питания электродвигателя 4SAA81AN001 и выкатить в ремонтное положение. ","Вывесить плакаты безопасности"]
[null,"4SAA82AN001","электродвигателя","2UBR36 314",null,0.4,"Cб. 4BFS00GE361 бл. 9С","отключить АВ питания электродвигателя 4SAA82AN001 и выкатить в ремонтное положение. ","Вывесить плакаты безопасности"]
[null,"4SAA83AN001","электродвигателя","2UBR36 262",null,0.4,"Cб. 4BFS00GE372 бл. 1А","отключить АВ питания электродвигателя 4SAA83AN001 и выкатить в ремонтное положение. Закрыть гермоклапан.","Вывесить плакаты безопасности"]
[null,"4SAA84AN001","электродвигателя","1UBR36 171",null,0.4,"Cб. 4BFS00GE342 бл. 4С","отключить АВ питания электродвигателя 4SAA84AN001 и выкатить в ремонтное положение. Закрыть гермоклапан.","Вывесить плакаты безопасности"]
[null,"4SAA85AN001","электродвигателя","2UBR23 263",null,0.4,"Cб. 4BFS00GE361бл. 10В","отключить АВ питания электродвигателя 4SAA85AN001 и выкатить в ремонтное положение. Закрыть гермоклапан.","Вывесить плакаты безопасности"]
[null,"4SAD22GH511","коробки соединительной канальных воздухонагревателей","2UBS04 232","нет",0.4,"Сб. 4BNP03GE811 бл.1В","отключить АВ питания 4SAD22H511 и выкатить в ремонтное положение.","Вывесить плакаты безопасности"]

{"sheet":"Выдающий","index":3,"n_rows":5,"n_cols":4,"rows_kept":5,"cut":false,"hidden":true,"merged":[]}
["Выдающий наряд","Выдающий наряд","группа по электробезопасности","Выдающих распоряжение в комбоксе не более 10 человек (без доработки)"]
["Осинцев Денис Николаевич","Осинцев Д.Н.","гр.5",{"$f":"B2&\", \"&C2","v":"Осинцев Д.Н., гр.5"}]
["Овечкин Владимир Евгеньевич","Овечкин В.Е.","гр.5",{"$f":"B3&\", \"&C3","v":"Овечкин В.Е., гр.5"}]
["Краснов Эдуард Евгеньвич","Краснов Э.Е.","гр.5",{"$f":"B4&\", \"&C4","v":"Краснов Э.Е., гр.5"}]
["Предеин Евгений Анатольвич","Предеин Е.А.","гр.5",{"$f":"B5&\", \"&C5","v":"Предеин Е.А., гр.5"}]

{"sheet":"Предложения по доработке","index":4,"n_rows":8,"n_cols":3,"rows_kept":8,"cut":false,"hidden":false,"merged":[]}
[]
["добавлять нормер помещения перед тем, что делают"]
["номер заявки внизу бланка слева"]
["сохранять бланк распоряжения в ПДФе в архив"]
["сделать дозиметрическое распоряжение"]
["добавить строки: снятие ЭД, установка ЭД, подключение КЛ 0,4кВ питания. ",null,"насчет пустой строки сложно, но попробуем"]
[" пустую строку с возможность писать в ней"]
["Сделать окна для количества Кксов всего и заполненных полностью"]